bitfinex/quotes_ETHUSD_20250916
["timestamp","ask_amount","ask_price","bid_price","bid_amount"]
[1758001903942,0.77,4533.3,4533.2,28.90189095]
[1758001905381,0.3008,4533.3,4533.2,28.90189095]
[1758001905681,0.3008,4533.3,4533.2,24.71189095]
[1758001906682,0.77,4533.3,4533.2,24.71189095]
[1758001907084,1.2392,4533.3,4533.2,24.71189095]
[1758001908471,0.002,4533.3,4533.2,25.48969095]
[1758001913867,0.002,4533.3,4533.2,26.01066559]
[1758001915074,0.002,4533.3,4533.2,25.57806559]
[1758001915793,0.002,4533.3,4533.2,30.67694057]
[1758001916186,0.002,4533.3,4533.2,31.11284057]
[1758001917358,0.002,4533.3,4533.2,35.30284057]
[1758001920088,0.002,4533.3,4533.2,40.16594057]
[1758001920900,0.002,4533.3,4533.2,40.60184057]
[1758001924368,1e-08,4533.6,4533.5,2.99780125]
[1758001924583,1e-08,4533.6,4533.5,9.79545926]
[1758001924812,1e-08,4533.6,4533.5,10.53760125]
[1758001925014,1e-08,4533.6,4533.5,12.72340125]
[1758001925214,1e-08,4533.6,4533.5,27.22340125]
[1758001925382,1e-08,4533.6,4533.5,26.92420125]
[1758001926324,1e-08,4533.6,4533.5,27.22340125]
[1758001927614,1e-08,4533.6,4533.5,26.45920125]
[1758001927914,1e-08,4533.6,4533.5,27.65930125]
[1758001929175,1e-08,4533.6,4533.5,31.84930125]
[1758001929702,1e-08,4533.6,4533.5,31.41340125]
[1758001929872,0.29330001,4533.6,4533.5,30.64920125]
[1758001931508,0.76210001,4533.6,4533.5,30.64920125]
[1758001931807,0.29330001,4533.6,4533.5,30.64920125]
[1758001933010,1e-08,4533.6,4533.5,31.41340125]
[1758001935310,1e-08,4533.6,4533.5,31.11420125]
[1758001935813,1e-08,4533.6,4533.5,31.84930125]
[1758001936172,1e-08,4533.6,4533.5,31.41340125]
[1758001936378,1e-08,4533.6,4533.5,36.94817623]
[1758001940816,1e-08,4533.6,4533.5,36.51227623]
[1758001942922,1.23700001,4533.6,4533.5,26.98320125]
[1758001943223,1.23700001,4533.6,4533.5,30.64820125]
[1758001944998,1.23700001,4533.6,4533.5,30.64920125]
[1758001946613,1.23700001,4533.6,4533.5,29.36640125]
[1758001947153,1.23700001,4533.6,4533.5,22.17640125]
[1758001947919,1.23700001,4533.6,4533.5,18.51140125]
[1758001948127,1.23700001,4533.6,4533.5,22.17640125]
[1758001950457,1.23700001,4533.6,4533.5,16.3056]
[1758001950674,1.23700001,4533.6,4533.5,19.861]
[1758001950861,1.23700001,4533.6,4533.5,22.06680125]
[1758001954155,1.23700001,4533.6,4533.5,7.56680125]
[1758001954543,1.23700001,4533.6,4533.5,22.06680125]
[1758001955471,1e-08,4533.6,4533.5,22.06680125]
[1758001955672,1e-08,4533.6,4533.5,22.84140125]
[1758001955875,1e-08,4533.6,4533.5,23.31170125]
[1758001956170,1e-08,4533.6,4533.5,23.40007394]
[1758001956675,1e-08,4533.6,4533.5,22.46017394]
[1758001956875,1e-08,4533.6,4533.5,23.40107394]
[1758001958087,1e-08,4533.6,4533.5,24.19307394]
[1758001959942,0.022,4533.9,4533.8,2.9976553]
[1758001959943,1e-08,4533.9,4533.8,2.9976553]
[1758001960150,1e-08,4533.9,4533.8,15.97458683]
[1758001960348,1e-08,4533.9,4533.8,17.19743028]
[1758001960551,1e-08,4533.9,4533.8,17.30703028]
[1758001960864,1e-08,4533.9,4533.8,31.89538911]
[1758001963221,1e-08,4533.9,4533.8,34.89538911]
[1758001967424,1e-08,4534.3,4534.2,2.99746072]
[1758001967610,1e-08,4534.3,4534.2,11.7833903]
[1758001967806,1e-08,4534.3,4534.2,12.6455357]
[1758001968211,1e-08,4534.3,4534.2,27.6209357]
[1758001973033,1e-08,4534.3,4534.2,27.1503357]
[1758001973451,1e-08,4534.3,4534.2,26.8463357]
[1758001975033,0.30680001,4534.3,4534.2,26.8463357]
[1758001975924,0.30680001,4534.3,4534.2,25.99514156]
[1758001976738,0.30680001,4534.3,4534.2,30.18514156]
[1758001978226,0.30680001,4534.3,4534.2,25.93746072]
[1758001978553,1.22080001,4534.3,4534.2,25.99514156]
[1758001979346,0.77720001,4534.3,4534.2,25.99514156]
[1758001979835,1.22080001,4534.3,4534.2,25.99514156]
[1758001980776,0.30680001,4534.3,4534.2,25.51974156]
[1758001980928,1e-08,4534.3,4534.2,25.51974156]
[1758001981957,1e-08,4534.3,4534.2,25.98334156]
[1758001983372,1e-08,4534.3,4534.2,33.9722224]
[1758001985389,1e-08,4534.3,4534.2,33.5422224]
[1758001985566,0.002,4534.4,4534.3,5.99741208]
[1758001985770,0.002,4534.4,4534.3,6.46101208]
[1758001985969,0.002,4534.4,4534.3,6.77221208]
[1758001986519,0.002,4534.4,4534.3,21.76261208]
[1758001988961,0.4436,4535.3,4535.2,2.20497442]
[1758001989163,0.7513,4535.3,4535.2,11.81265526]
[1758001990978,1.2217,4535.3,4535.2,11.81265526]
[1758001991558,0.7513,4535.3,4535.2,11.81265526]
[1758001995213,0.4704,4535.9,4535.8,2.20468274]
[1758001995512,1.2217,4535.9,4535.8,10.11636358]
[1758001995818,1.2217,4535.9,4535.8,10.22596358]
[1758001996193,1.2217,4535.9,4535.8,24.72596358]
[1758001999621,1.2217,4535.9,4535.8,25.16597278]
[1758002000223,0.7513,4535.9,4535.8,25.16597278]
[1758002001336,0.7533,4535.9,4535.8,25.16597278]
[1758002002637,1.2267,4535.9,4535.8,25.16597278]
[1758002002838,1.2267,4535.9,4535.8,20.91829194]
[1758002004921,0.7533,4535.9,4535.8,20.91829194]
[1758002006437,1.2267,4535.9,4535.8,20.91829194]
[1758002007130,0.7533,4535.9,4535.8,20.91829194]
[1758002007925,0.7533,4535.9,4535.8,25.16597278]
[1758002009316,0.3097,4535.9,4535.8,25.16597278]
[1758002009524,0.3097,4535.9,4535.8,25.62357278]
[1758002009742,0.002,4535.9,4535.8,25.62357278]
[1758002010249,0.3053,4535.9,4535.8,25.16597278]
[1758002010751,0.7391,4535.9,4535.8,25.16597278]
[1758002013754,0.7391,4535.9,4535.8,20.91829194]
[1758002015176,0.7391,4535.9,4535.8,21.37589194]
[1758002015177,0.3053,4535.9,4535.8,21.37589194]
[1758002017485,0.002,4535.9,4535.8,21.37589194]
[1758002018747,0.3053,4535.9,4535.8,20.91829194]
[1758002018949,0.7391,4535.9,4535.8,20.91829194]
[1758002021881,1.2125,4535.9,4535.8,20.91829194]
[1758002022078,0.7391,4535.9,4535.8,20.91829194]
[1758002022284,0.7391,4535.9,4535.8,18.7136092]
[1758002022483,1.2125,4535.9,4535.8,20.91829194]
[1758002022858,0.7391,4535.9,4535.8,20.91829194]
[1758002025369,0.3053,4535.9,4535.8,20.91829194]
[1758002025575,0.3053,4535.9,4535.8,21.37589194]
[1758002026683,0.3053,4535.9,4535.8,20.91829194]
[1758002029388,0.3053,4535.9,4535.8,21.37589194]
[1758002033002,0.3053,4535.9,4535.8,23.07089194]
[1758002033423,0.002,4535.9,4535.8,23.07089194]
[1758002034783,0.2925,4535.9,4535.8,22.61329194]
[1758002034988,0.2925,4535.9,4535.8,23.09989194]
[1758002039221,0.2925,4535.9,4535.8,22.61329194]
[1758002039401,0.7312,4535.9,4535.8,22.61229194]
[1758002042495,0.2925,4535.9,4535.8,22.61229194]
[1758002042801,0.2925,4535.9,4535.8,23.09889194]
[1758002043124,0.002,4535.9,4535.8,23.86379194]
[1758002044109,0.002,4535.9,4535.8,23.40259194]
[1758002047420,0.002,4535.9,4535.8,23.09889194]
[1758002048019,0.002,4535.9,4535.8,8.59889194]
[1758002048620,0.002,4535.9,4535.8,23.09889194]
[1758002051611,0.002,4535.9,4535.8,8.59889194]
[1758002052044,0.2976,4535.9,4535.8,18.94929194]
[1758002052344,0.7363,4535.9,4535.8,22.61229194]
[1758002052547,0.7363,4535.9,4535.8,18.94929194]
[1758002052756,0.7363,4535.9,4535.8,22.61229194]
[1758002053490,0.2976,4535.9,4535.8,23.09889194]
[1758002055521,0.2976,4535.9,4535.8,8.59889194]
[1758002056116,0.2976,4535.9,4535.8,23.09889194]
[1758002057943,0.2976,4535.9,4535.8,22.61229194]
[1758002058820,0.2976,4535.9,4535.8,23.09889194]
[1758002059149,0.2976,4535.9,4535.8,8.59889194]
[1758002059647,0.7363,4535.9,4535.8,22.61229194]
[1758002060553,0.2976,4535.9,4535.8,23.06429194]
[1758002061647,0.002,4535.9,4535.8,23.06429194]
[1758002062323,0.2872,4535.9,4535.8,23.06429194]
[1758002062523,0.2872,4535.9,4535.8,8.56429194]
[1758002063151,0.2872,4535.9,4535.8,23.06429194]
[1758002065120,0.2872,4535.9,4535.8,19.40129194]
[1758002065351,0.2872,4535.9,4535.8,23.06429194]
[1758002065749,0.002,4535.9,4535.8,23.06429194]
[1758002067240,0.2872,4535.9,4535.8,18.94929194]
[1758002067444,0.7207,4535.9,4535.8,22.61129194]
[1758002069952,0.2872,4535.9,4535.8,22.61129194]
[1758002070354,0.2872,4535.9,4535.8,8.11129194]
[1758002070558,0.2872,4535.9,4535.8,8.56329194]
[1758002070955,0.2872,4535.9,4535.8,20.8586092]
[1758002071125,0.2872,4535.9,4535.8,23.06329194]
[1758002072159,0.002,4535.9,4535.8,23.36129194]
[1758002072334,0.002,4535.9,4535.8,23.82129194]
[1758002072939,0.002,4535.9,4535.8,23.36129194]
[1758002074156,0.002,4535.9,4535.8,8.86129194]
[1758002074336,0.47659517,4537.0,4536.0,2.20456808]
[1758002074554,0.66259758,4536.6,4536.1,18.162]
[1758002074940,0.66259758,4536.6,4536.1,20.81852284]
[1758002076144,0.66459758,4536.6,4536.2,4.35148372]
[1758002076465,0.66459758,4536.6,4536.3,3.662]
[1758002076666,0.66459758,4536.6,4536.3,4.114]
[1758002080879,0.66459758,4536.6,4536.4,0.452]
[1758002081082,0.66459758,4536.6,4536.5,3.662]
[1758002081289,0.94979758,4536.6,4536.5,3.662]
[1758002085380,0.94979758,4536.6,4536.5,4.114]
[1758002086480,0.94979758,4536.6,4536.5,3.662]
[1758002089809,3.15409154,4536.6,4536.5,3.662]
[1758002090088,0.94979758,4536.6,4536.5,3.662]
[1758002090462,0.94979758,4536.6,4536.5,5.357]
[1758002090658,3.15409154,4536.6,4536.5,5.357]
[1758002090878,1.55048142,4536.6,4536.4,1.695]
[1758002091079,3.24386255,4536.5,4536.4,1.695]
[1758002091286,3.73742415,4536.5,4536.4,5.357]
[1758002091680,4.40008467,4536.5,4536.4,1.695]
[1758002091994,4.40008467,4536.5,4536.4,5.357]
[1758002092396,4.19322307,4536.5,4536.4,5.357]
[1758002092694,4.40000896,4536.5,4536.4,5.357]
[1758002092907,7.40000896,4536.5,4536.4,5.357]
[1758002093059,7.6068043,4536.5,4536.4,5.357]
[1758002093390,7.40000896,4536.5,4536.4,5.357]
[1758002093594,7.39600896,4536.5,4536.4,5.357]
[1758002093792,6.96120896,4536.5,4536.4,5.357]
[1758002093993,6.75438691,4536.5,4536.4,5.357]
[1758002094566,6.75438691,4536.5,4536.4,5.8091]
[1758002100578,6.75438691,4536.5,4536.4,5.357]
[1758002100777,6.75424212,4536.5,4536.4,5.357]
[1758002106454,6.75424212,4536.5,4536.4,5.8108]
[1758002106750,6.46754212,4536.5,4536.4,5.8108]
[1758002107909,6.46751449,4536.5,4536.4,5.8108]
[1758002108925,4.26317194,4536.5,4536.4,6.107]
[1758002109138,3.78659917,4536.5,4536.4,6.5655]
[1758002109313,4.26317194,4536.5,4536.4,6.5655]
[1758002109825,4.13923329,4536.5,4536.4,6.5655]
[1758002110025,4.2631806,4536.5,4536.4,6.5655]
[1758002110400,4.26318326,4536.5,4536.4,6.5655]
[1758002110606,4.13923329,4536.5,4536.4,6.5655]
[1758002110842,4.26318326,4536.5,4536.4,6.5655]
[1758002111043,4.13923329,4536.5,4536.4,6.5655]
[1758002112147,4.26318768,4536.5,4536.4,6.5655]
[1758002112312,1.26318768,4536.5,4536.4,6.5655]
[1758002112501,0.66266052,4536.5,4536.4,6.5655]
[1758002125066,0.66266052,4536.5,4536.4,21.0655]
[1758002127979,0.66266052,4536.5,4536.4,6.5655]
[1758002128348,0.66266052,4536.5,4536.4,21.0655]
[1758002131377,0.66266052,4536.5,4536.4,6.5655]
[1758002131867,0.66266052,4536.5,4536.4,21.0655]
[1758002135293,0.002,4536.6,4536.4,21.0655]
[1758002135472,0.002,4536.6,4536.5,0.9304]
[1758002135666,0.66455661,4536.6,4536.5,0.9304]
[1758002135868,0.66455661,4536.6,4536.5,1.2231]
[1758002137966,0.002,4536.6,4536.5,3.42744255]
[1758002138286,0.002,4536.6,4536.5,3.53704255]
[1758002139072,0.002,4536.6,4536.5,1.3327]
[1758002140293,0.002,4536.6,4536.5,15.8327]
[1758002141894,0.002,4536.6,4536.5,18.03704255]
[1758002142695,0.002,4536.6,4536.5,15.8327]
[1758002145883,0.002,4536.6,4536.5,15.3806]
[1758002148415,0.002,4536.6,4536.5,18.03704255]
[1758002150107,0.002,4536.6,4536.5,15.8327]
[1758002151105,0.002,4536.6,4536.5,18.03704255]
[1758002151691,0.002,4536.6,4536.5,15.8327]
[1758002151891,0.002,4536.6,4536.5,18.03704255]
[1758002153790,0.002,4536.6,4536.5,15.8327]
[1758002154223,0.002,4536.6,4536.5,18.03704255]
[1758002154992,0.002,4536.6,4536.5,15.8327]
[1758002155523,0.002,4536.6,4536.5,18.03704255]
[1758002158530,0.002,4536.6,4536.5,17.58494255]
[1758002158835,0.002,4536.6,4536.5,18.01634255]
[1758002159200,0.002,4536.6,4536.5,15.90032703]
[1758002159806,0.002,4536.6,4536.5,18.10466958]
[1758002160413,0.002,4536.6,4536.5,22.64724255]
[1758002160928,0.002,4536.6,4536.5,23.39464255]
[1758002162701,0.002,4536.6,4536.5,22.64724255]
[1758002163133,0.002,4536.6,4536.5,23.39464255]
[1758002163622,0.002,4536.6,4536.5,22.96324255]
[1758002165829,0.002,4536.6,4536.5,8.46324255]
[1758002166441,0.002,4536.6,4536.5,22.96324255]
[1758002166905,0.002,4536.6,4536.5,22.64724255]
[1758002167105,0.002,4536.6,4536.5,18.98724255]
[1758002167326,0.251,4536.6,4536.5,18.98724255]
[1758002167537,0.251,4536.6,4536.5,22.64724255]
[1758002169040,0.251,4536.6,4536.5,22.64824255]
[1758002169219,0.002,4536.6,4536.5,22.64824255]
[1758002169427,0.2532,4536.6,4536.5,22.64824255]
[1758002169902,0.2532,4536.6,4536.5,8.14824255]
[1758002170306,0.002,4536.6,4536.5,8.14824255]
[1758002172038,0.002,4536.6,4536.5,8.46424255]
[1758002173795,0.002,4536.6,4536.5,22.96424255]
[1758002175657,0.002,4536.6,4536.5,20.4439]
[1758002175851,0.3125,4536.6,4536.5,19.9656]
[1758002176184,0.3125,4536.6,4536.5,22.16994255]
[1758002176478,0.3125,4536.6,4536.5,22.62694255]
[1758002176883,0.002,4536.6,4536.5,22.62694255]
[1758002177179,0.002,4536.6,4536.5,23.37434255]
[1758002178046,0.002,4536.6,4536.5,23.49840857]
[1758002179268,0.002,4536.6,4536.5,8.99840857]
[1758002179996,0.002,4536.6,4536.5,17.20266602]
[1758002180216,0.002,4536.6,4536.5,21.32396602]
[1758002180370,0.002,4536.6,4536.5,23.52830857]
[1758002180575,0.002,4536.6,4536.5,23.40424255]
[1758002184420,0.002,4536.6,4536.5,23.88073262]
[1758002185717,0.002,4536.6,4536.5,23.77113262]
[1758002185918,0.002,4536.6,4536.5,23.29464255]
[1758002187006,0.002,4536.6,4536.5,23.73924255]
[1758002193935,0.002,4536.6,4536.5,17.0976]
[1758002193936,0.279,4536.6,4536.5,17.0976]
[1758002194232,0.279,4536.6,4536.5,22.96094255]
[1758002194435,0.279,4536.6,4536.5,20.2996]
[1758002194601,0.279,4536.6,4536.5,22.05934255]
[1758002195407,0.279,4536.6,4536.5,22.54564255]
[1758002195605,0.279,4536.6,4536.5,19.855]
[1758002195938,0.279,4536.6,4536.5,19.9646]
[1758002196304,0.002,4536.6,4536.5,19.9646]
[1758002196642,0.002,4536.6,4536.5,22.96814255]
[1758002197050,0.002,4536.6,4536.5,22.65524255]
[1758002197220,0.002,4536.6,4536.5,22.96814255]
[1758002197419,0.002,4536.6,4536.5,23.43044255]
[1758002197627,0.002,4536.6,4536.5,23.51877466]
[1758002197949,0.002,4536.6,4536.5,22.74357466]
[1758002198737,0.002,4536.6,4536.5,23.05647466]
[1758002198909,0.002,4536.6,4536.5,23.51877466]
[1758002199105,0.002,4536.6,4536.5,23.05647466]
[1758002199311,0.002,4536.6,4536.5,22.74357466]
[1758002199842,0.002,4536.6,4536.5,8.24357466]
[1758002200309,0.002,4536.6,4536.5,22.74357466]
[1758002201153,0.279,4536.6,4536.5,22.74357466]
[1758002201308,0.279,4536.6,4536.5,20.05293211]
[1758002201808,0.279,4536.6,4536.5,22.74357466]
[1758002202413,0.002,4536.6,4536.5,22.74357466]
[1758002204348,0.002,4536.6,4536.5,23.05647466]
[1758002204762,0.002,4536.6,4536.5,22.74357466]
[1758002205435,0.002,4536.6,4536.5,23.05647466]
[1758002208040,0.279,4536.6,4536.5,22.74357466]
[1758002209144,0.279,4536.6,4536.5,19.08457466]
[1758002209376,0.279,4536.6,4536.5,22.74257466]
[1758002209781,0.002,4536.6,4536.5,22.74257466]
[1758002210269,0.002,4536.6,4536.5,23.50767466]
[1758002211271,0.002,4536.6,4536.5,9.00767466]
[1758002211683,0.002,4536.6,4536.5,23.50767466]
[1758002219768,0.002,4536.6,4536.5,23.05567466]
[1758002220354,0.002,4536.6,4536.5,19.83267466]
[1758002220555,0.002,4536.6,4536.5,23.49067466]
[1758002222151,0.002,4536.6,4536.5,23.05567466]
[1758002222754,0.002,4536.6,4536.5,23.49067466]
[1758002222985,0.002,4536.6,4536.5,23.05567466]
[1758002223182,0.002,4536.6,4536.5,16.88023211]
[1758002223183,0.2965,4536.6,4536.5,16.88023211]
[1758002223586,0.2965,4536.6,4536.5,20.53823211]
[1758002224299,0.2965,4536.6,4536.5,22.74257466]
[1758002224756,0.002,4536.6,4536.5,22.74257466]
[1758002225808,0.2965,4536.6,4536.5,20.53823211]
[1758002225965,0.2965,4536.6,4536.5,22.74257466]
[1758002226607,0.2965,4536.6,4536.5,20.53823211]
[1758002226815,0.2965,4536.6,4536.5,20.05193211]
[1758002226958,0.2965,4536.6,4536.5,22.72267466]
[1758002227314,0.002,4536.6,4536.5,23.03567466]
[1758002228004,0.002,4536.6,4536.5,22.72267466]
[1758002228206,0.2613,4536.6,4536.5,20.51833211]
[1758002228388,0.2613,4536.6,4536.5,22.72267466]
[1758002229468,0.2613,4536.6,4536.5,19.06467466]
[1758002229669,0.2613,4536.6,4536.5,22.25627466]
[1758002229968,0.2613,4536.6,4536.5,22.72267466]
[1758002230594,0.2613,4536.6,4536.5,20.51833211]
[1758002230901,0.002,4536.6,4536.5,22.72267466]
[1758002233231,0.002,4536.6,4536.5,23.03567466]
[1758002233536,0.002,4536.6,4536.5,22.72267466]
[1758002234315,4.96696357,4536.6,4536.5,14.69893211]
[1758002234501,0.7257,4536.6,4536.5,18.159]
[1758002234704,0.2613,4536.6,4536.5,18.159]
[1758002235217,0.002,4536.6,4536.5,18.9384]
[1758002235422,0.002,4536.6,4536.5,21.14274255]
[1758002235607,0.002,4536.6,4536.5,21.68734255]
[1758002236008,0.002,4536.6,4536.5,21.77567348]
[1758002236756,0.2613,4536.6,4536.5,18.82333093]
[1758002237060,0.002,4536.6,4536.5,18.82333093]
[1758002239043,0.002,4536.6,4536.5,18.35693093]
[1758002239044,0.2613,4536.6,4536.5,18.35693093]
[1758002239620,0.2613,4536.6,4536.5,18.82333093]
[1758002241185,0.6977,4536.6,4536.5,18.16]
[1758002241384,2.90199396,4536.6,4536.5,14.501]
[1758002241554,0.6977,4536.6,4536.5,18.16]
[1758002242669,0.2613,4536.6,4536.5,18.16]
[1758002244117,0.6977,4536.6,4536.5,18.16]
[1758002244767,0.2613,4536.6,4536.5,18.16]
[1758002245384,0.2613,4536.6,4536.5,18.6523]
[1758002246272,0.002,4536.6,4536.5,18.6523]
[1758002247057,0.2871,4536.6,4536.5,18.6513]
[1758002248751,0.2871,4536.6,4536.5,18.159]
[1758002250879,0.2871,4536.6,4536.5,14.501]
[1758002251082,0.722,4536.6,4536.5,18.159]
[1758002251474,0.2871,4536.6,4536.5,18.159]
[1758002252069,2.49139396,4536.6,4536.5,18.159]
[1758002252617,0.2871,4536.6,4536.5,18.159]
[1758002253695,0.2871,4536.6,4536.5,14.501]
[1758002253876,2.93029396,4536.6,4536.5,0.001]
[1758002254203,3.73689874,4536.6,4536.5,3.324]
[1758002254709,4.02399874,4536.6,4536.5,3.324]
[1758002255209,7.02399874,4536.6,4536.5,3.324]
[1758002255709,7.02399874,4536.6,4536.5,3.659]
[1758002256691,7.23044211,4536.6,4536.5,0.001]
[1758002256897,7.23044211,4536.6,4536.5,3.659]
[1758002257266,7.02399874,4536.6,4536.5,3.659]
[1758002257684,8.02239438,4536.6,4536.5,0.001]
[1758002258108,8.02206492,4536.6,4536.5,0.001]
[1758002258607,6.79116492,4536.6,4536.5,0.001]
[1758002258824,10.83003285,4536.6,4536.5,0.001]
[1758002259105,6.25452119,4536.6,4536.5,0.4933]
[1758002259323,5.77849396,4536.6,4536.5,0.4933]
[1758002259485,6.25392952,4536.6,4536.5,0.4933]
[1758002259687,5.77849396,4536.6,4536.5,0.4933]
[1758002259885,6.25392952,4536.6,4536.5,0.4933]
[1758002260089,5.77849396,4536.6,4536.5,0.4933]
[1758002260325,6.25392952,4536.6,4536.5,0.4933]
[1758002260522,5.77849396,4536.6,4536.5,0.4933]
[1758002260717,6.25392952,4536.6,4536.5,0.4933]
[1758002260991,5.77849396,4536.6,4536.5,0.4933]
[1758002261200,6.25392952,4536.6,4536.5,0.4933]
[1758002261424,10.02375753,4536.6,4536.5,0.4933]
[1758002261621,10.62299818,4536.6,4536.5,0.4933]
[1758002261929,11.2642472,4536.6,4536.5,0.001]
[1758002264523,11.2642472,4536.6,4536.5,3.66]
[1758002267932,10.9771472,4536.6,4536.5,3.66]
[1758002268131,10.5422472,4536.6,4536.5,3.66]
[1758002268439,10.3359025,4536.6,4536.5,4.1523]
[1758002268944,10.21209309,4536.6,4536.5,4.1523]
[1758002269638,10.33589593,4536.6,4536.5,4.1523]
[1758002271731,10.54225891,4536.6,4536.5,3.66]
[1758002273033,10.54225891,4536.6,4536.5,4.1227]
[1758002273413,10.54225891,4536.6,4536.5,3.66]
[1758002274846,10.54225891,4536.6,4536.5,4.1227]
[1758002278349,10.74877014,4536.6,4536.5,4.1227]
[1758002278816,10.54240716,4536.6,4536.5,4.1227]
[1758002279152,10.74891839,4536.6,4536.5,4.1227]
[1758002279314,10.54240716,4536.6,4536.5,4.1227]
[1758002279515,10.74896223,4536.6,4536.5,4.1227]
[1758002279936,10.46386223,4536.6,4536.5,4.1227]
[1758002280258,6.21859866,4536.6,4536.5,4.8432]
[1758002281223,6.81289312,4536.6,4536.5,4.8432]
[1758002282184,6.01208743,4536.6,4536.5,4.4089]
[1758002282396,6.01208743,4536.6,4536.5,4.8432]
[1758002283674,0.80779347,4536.6,4536.5,4.8432]
[1758002283875,0.002,4536.6,4536.5,4.8432]
[1758002284259,0.002,4536.6,4536.5,19.3432]
[1758002294628,0.002,4536.6,4536.5,4.8432]
[1758002295228,0.002,4536.6,4536.5,19.3432]
[1758002295533,0.002,4536.6,4536.5,18.9089]
[1758002295893,0.002,4536.6,4536.5,19.3432]
[1758002296520,2.49259396,4536.6,4536.5,14.501]
[1758002296720,2.49259396,4536.6,4536.5,3.659]
[1758002296923,2.92639396,4536.6,4536.5,0.001]
[1758002297116,2.92639396,4536.6,4536.5,3.659]
[1758002297525,2.49259396,4536.6,4536.5,3.659]
[1758002297849,2.49259396,4536.6,4536.5,4.1395]
[1758002298746,2.20629396,4536.6,4536.5,4.1395]
[1758002299606,2.20629396,4536.6,4536.5,4.86]
[1758002299607,0.002,4536.6,4536.5,4.86]
[1758002299820,2.20629396,4536.6,4536.5,4.86]
[1758002300312,2.20629396,4536.6,4536.5,4.4257]
[1758002302606,2.49259396,4536.6,4536.5,4.1382]
[1758002303012,2.20629396,4536.6,4536.5,4.1382]
[1758002305348,0.002,4536.6,4536.5,4.1382]
[1758002305530,2.20629396,4536.6,4536.5,4.1382]
[1758002306560,2.20629396,4536.6,4536.5,4.4401]
[1758002307153,0.002,4536.6,4536.5,4.9146]
[1758002307462,2.20629396,4536.6,4536.5,4.9146]
[1758002309353,2.20629396,4536.6,4536.5,4.4401]
[1758002309553,2.20629396,4536.6,4536.5,4.9146]
[1758002309961,0.002,4536.6,4536.5,4.9146]
[1758002310546,2.20629396,4536.6,4536.5,4.9146]
[1758002311356,0.002,4536.6,4536.5,4.9146]
[1758002311744,2.20629396,4536.6,4536.5,4.9146]
[1758002312132,0.002,4536.6,4536.5,4.9146]
[1758002322904,2.48209396,4536.6,4536.5,3.659]
[1758002323401,2.95841852,4536.6,4536.5,3.659]
[1758002323600,2.95841852,4536.6,4536.5,0.001]
[1758002323771,2.95841852,4536.6,4536.5,4.1382]
[1758002324359,2.95841852,4536.6,4536.5,3.659]
[1758002324901,2.95841852,4536.6,4536.5,5.354]
[1758002325567,2.95841852,4536.6,4536.5,5.8332]
[1758002329069,2.95841852,4536.6,4536.5,2.1752]
[1758002329299,2.95841852,4536.6,4536.5,5.8332]
[1758002330406,2.95841852,4536.6,4536.5,5.354]
[1758002330771,2.95841852,4536.6,4536.5,5.404]
[1758002331295,2.95841852,4536.6,4536.5,5.8579]
[1758002331609,3.40251852,4536.6,4536.5,5.404]
[1758002331771,2.95841852,4536.6,4536.5,5.404]
[1758002332306,2.95841852,4536.6,4536.5,5.8579]
[1758002335417,2.95841852,4536.6,4536.5,1.746]
[1758002335606,3.40251852,4536.6,4536.5,5.202]
[1758002336478,3.40251852,4536.6,4536.5,5.404]
[1758002336705,3.2892982,4536.6,4536.5,5.404]
[1758002337113,3.0563602,4536.6,4536.5,5.404]
[1758002337275,3.05636332,4536.6,4536.5,5.404]
[1758002337475,3.50046332,4536.6,4536.5,5.404]
[1758002337702,3.70725656,4536.6,4536.5,5.404]
[1758002338684,3.70725656,4536.6,4536.5,1.746]
[1758002338886,12.60039823,4536.6,4536.5,3.709]
[1758002339087,7.05515656,4536.6,4536.5,3.709]
[1758002339474,7.49925656,4536.6,4536.5,3.709]
[1758002339875,8.29789385,4536.6,4536.5,3.711]
[1758002340178,7.50325656,4536.6,4536.5,3.711]
[1758002340385,5.99639114,4536.4,4536.3,0.001]
[1758002340605,7.01039174,4536.4,4536.3,3.662]
[1758002340811,13.62524897,4536.4,4536.3,0.001]
[1758002340989,12.83163341,4536.4,4536.3,0.001]
[1758002341205,2.20458553,4536.0,4535.9,1e-08]
[1758002341386,11.3157278,4536.0,4535.9,1e-08]
[1758002341581,12.0398278,4536.0,4535.9,1e-08]
[1758002342516,12.83166745,4536.0,4535.9,1e-08]
[1758002343330,17.28714999,4536.0,4535.9,1e-08]
[1758002344035,16.44016345,4536.0,4535.9,1e-08]
[1758002344897,15.64884126,4536.0,4535.9,1e-08]
[1758002346397,15.64484126,4536.0,4535.9,1e-08]
[1758002348440,16.23730377,4536.0,4535.9,1e-08]
[1758002349906,15.80870377,4536.0,4535.9,1e-08]
[1758002350136,15.80870377,4536.0,4535.9,0.48920001]
[1758002350336,15.21624126,4536.0,4535.9,0.48920001]
[1758002350539,15.21624126,4536.0,4535.9,1e-08]
[1758002351391,11.55224126,4536.0,4535.9,1e-08]
[1758002355235,7.30208613,4536.0,4535.9,0.48920001]
[1758002355400,11.55224126,4536.0,4535.9,0.48920001]
[1758002356501,7.30208613,4536.0,4535.9,0.48920001]
[1758002356902,7.01058613,4536.0,4535.9,0.79970001]
[1758002357207,5.20458553,4536.0,4535.9,1.23760001]
[1758002357718,2.20458553,4536.0,4535.9,1.23760001]
[1758002365728,2.20658553,4536.0,4535.9,1.23760001]
[1758002368014,2.68057,4536.0,4535.9,1.23760001]
[1758002368252,6.01054752,4536.0,4535.9,1.23760001]
[1758002369317,6.21680196,4536.0,4535.9,1.23760001]
[1758002369511,6.09306039,4536.0,4535.9,1.23760001]
[1758002370057,6.21683301,4536.0,4535.9,0.48920001]
[1758002370965,6.21687176,4536.0,4535.9,0.48920001]
[1758002371860,6.49927176,4536.0,4535.9,0.48920001]